[Event "Early-Titled-Tuesday-Blitz-July-09-2024"]
[Site "Chess.com"]
[Date "2024.07.09"]
[Round "11"]
[White "glucolisis04"]
[Black "RedFirePanda"]
[Result "1-0"]
[WhiteElo "2301"]
[BlackElo "2411"]
[TimeControl "180+1"]
[EndTime "10:07:41 PDT"]
[Termination "glucolisis04 won by resignation"]

1. d4 {[%clk 0:02:59.6]} 1... d5 {[%clk 0:03:00.4]} 2. c4 {[%clk 0:03:00.1]}
2... dxc4 {[%clk 0:03:01.3]} 3. e4 {[%clk 0:02:59.2]} 3... Nf6 {[%clk
0:02:58.9]} 4. e5 {[%clk 0:02:58.2]} 4... Nd5 {[%clk 0:02:59.3]} 5. Bxc4 {[%clk
0:02:58.5]} 5... c6 {[%clk 0:02:59.7]} 6. Nc3 {[%clk 0:02:55.9]} 6... Nb6 {[%clk
0:02:49.7]} 7. Bb3 {[%clk 0:02:51.4]} 7... Bf5 {[%clk 0:02:49.8]} 8. Nge2 {[%clk
0:02:46.5]} 8... e6 {[%clk 0:02:48.8]} 9. O-O {[%clk 0:02:42]} 9... Be7 {[%clk
0:02:47.8]} 10. Be3 {[%clk 0:02:38.6]} 10... O-O {[%clk 0:02:47.6]} 11. Ng3
{[%clk 0:02:37.8]} 11... Bg6 {[%clk 0:02:47.6]} 12. f4 {[%clk 0:02:30.9]} 12...
Nd5 {[%clk 0:02:47.1]} 13. Nxd5 {[%clk 0:02:28.9]} 13... cxd5 {[%clk 0:02:48]}
14. f5 {[%clk 0:02:25.2]} 14... exf5 {[%clk 0:02:45.8]} 15. Nxf5 {[%clk
0:02:25]} 15... Bg5 {[%clk 0:02:41.2]} 16. Qd2 {[%clk 0:01:52.6]} 16... Bxe3+
{[%clk 0:02:37.4]} 17. Qxe3 {[%clk 0:01:52.4]} 17... Nc6 {[%clk 0:02:36.4]} 18.
Nd6 {[%clk 0:01:44.7]} 18... Qb6 {[%clk 0:02:30]} 19. Rad1 {[%clk 0:01:41.3]}
19... Ne7 {[%clk 0:02:25.9]} 20. Qg5 {[%clk 0:01:34.4]} 20... Qd8 {[%clk
0:02:24.1]} 21. Nxb7 {[%clk 0:01:29.9]} 21... Qc7 {[%clk 0:02:14]} 22. Nd6
{[%clk 0:01:14.6]} 22... h6 {[%clk 0:02:13.5]} 23. Qg4 {[%clk 0:00:53.1]} 23...
a5 {[%clk 0:02:08.1]} 24. Rc1 {[%clk 0:00:52.6]} 24... Qa7 {[%clk 0:02:07.6]}
25. Kh1 {[%clk 0:00:44.1]} 25... a4 {[%clk 0:02:03.4]} 26. Bc2 {[%clk 0:00:43]}
26... Bxc2 {[%clk 0:01:49.5]} 27. Rxc2 {[%clk 0:00:43.4]} 27... Qa6 {[%clk
0:01:47]} 28. Rcf2 {[%clk 0:00:40.9]} 28... Ng6 {[%clk 0:01:24.7]} 29. h3 {[%clk
0:00:28.3]} 29... Kh7 {[%clk 0:01:10.6]} 30. Rxf7 {[%clk 0:00:25.7]} 30... Qxf1+
{[%clk 0:01:05.8]} 31. Rxf1 {[%clk 0:00:25.5]} 31... Rxf1+ {[%clk 0:01:06.7]}
32. Kh2 {[%clk 0:00:26]} 32... Rf4 {[%clk 0:01:03.3]} 33. Qd7 {[%clk 0:00:16.8]}
33... Rf2 {[%clk 0:00:20.1]} 34. Ne8 {[%clk 0:00:16.5]} 34... Rxe8 {[%clk
0:00:08.7]} 35. Qxe8 {[%clk 0:00:17.4]} 35... Nf4 {[%clk 0:00:09.1]} 36. Kg3
{[%clk 0:00:17.3]} 36... Rf1 {[%clk 0:00:06.1]} 37. e6 {[%clk 0:00:14.8]} 37...
Nh5+ {[%clk 0:00:04.6]} 38. Kh2 {[%clk 0:00:14.3]} 38... Re1 {[%clk 0:00:05.1]}
39. e7 {[%clk 0:00:14]} 39... Nf6 {[%clk 0:00:05.5]} 40. Qf7 {[%clk 0:00:12.9]}
40... Re4 {[%clk 0:00:05.6]} 41. b3 {[%clk 0:00:09.9]} 41... axb3 {[%clk
0:00:03.8]} 42. axb3 {[%clk 0:00:09.9]} 42... Rf4 {[%clk 0:00:04.1]} 43. Qxf6
{[%clk 0:00:08.9]} 43... Rxf6 {[%clk 0:00:02.2]} 44. e8=Q {[%clk 0:00:09.1]}
44... Rf8 {[%clk 0:00:01.2]} 45. Qe5 {[%clk 0:00:09.5]} 1-0

[Event "Early-Titled-Tuesday-Blitz-July-09-2024"]
[Site "Chess.com"]
[Date "2024.07.09"]
[Round "11"]
[White "Vaathi_Coming"]
[Black "champ2005"]
[Result "0-1"]
[WhiteElo "2925"]
[BlackElo "3054"]
[TimeControl "180+1"]
[EndTime "10:07:42 PDT"]
[Termination "champ2005 won on time"]

1. Nf3 {[%clk 0:03:00.9]} 1... Nf6 {[%clk 0:02:59]} 2. e3 {[%clk 0:03:00.8]}
2... g6 {[%clk 0:02:59.4]} 3. d4 {[%clk 0:02:59.8]} 3... Bg7 {[%clk 0:03:00.3]}
4. Be2 {[%clk 0:03:00.4]} 4... O-O {[%clk 0:03:00.8]} 5. O-O {[%clk 0:03:01.2]}
5... d6 {[%clk 0:02:59.7]} 6. Nc3 {[%clk 0:02:58.7]} 6... c5 {[%clk 0:02:57.5]}
7. d5 {[%clk 0:02:58]} 7... e5 {[%clk 0:02:57.6]} 8. Nd2 {[%clk 0:02:52.3]} 8...
Nbd7 {[%clk 0:02:50]} 9. a4 {[%clk 0:02:52]} 9... a6 {[%clk 0:02:50]} 10. a5
{[%clk 0:02:48.8]} 10... Ne8 {[%clk 0:02:47.3]} 11. Nc4 {[%clk 0:02:49]} 11...
f5 {[%clk 0:02:46.7]} 12. Rb1 {[%clk 0:02:47.3]} 12... e4 {[%clk 0:02:46.5]} 13.
Na4 {[%clk 0:02:43.5]} 13... Rb8 {[%clk 0:02:34.4]} 14. Bd2 {[%clk 0:02:42.3]}
14... Ne5 {[%clk 0:02:25.8]} 15. Nab6 {[%clk 0:02:39.4]} 15... Bd7 {[%clk
0:02:23.9]} 16. b4 {[%clk 0:02:33.7]} 16... cxb4 {[%clk 0:02:19.6]} 17. Bxb4
{[%clk 0:02:34.6]} 17... Qc7 {[%clk 0:02:15.6]} 18. Nxe5 {[%clk 0:02:18.3]}
18... Bxe5 {[%clk 0:02:16.5]} 19. c4 {[%clk 0:02:17.6]} 19... Nf6 {[%clk
0:02:07.3]} 20. Rc1 {[%clk 0:01:31.8]} 20... f4 {[%clk 0:02:06.8]} 21. exf4
{[%clk 0:01:31.2]} 21... Bxf4 {[%clk 0:02:07.7]} 22. Rc3 {[%clk 0:01:26.1]}
22... Be5 {[%clk 0:02:00]} 23. Rc1 {[%clk 0:01:17.8]} 23... Bf4 {[%clk
0:01:56.6]} 24. Rc3 {[%clk 0:01:15.1]} 24... Be5 {[%clk 0:01:31.9]} 25. Re3
{[%clk 0:01:14.6]} 25... Bf5 {[%clk 0:01:30.4]} 26. g3 {[%clk 0:01:01.5]} 26...
Rbe8 {[%clk 0:01:27.5]} 27. Kg2 {[%clk 0:00:41.8]} 27... h5 {[%clk 0:01:26.7]}
28. h3 {[%clk 0:00:38.3]} 28... Rf7 {[%clk 0:01:06.7]} 29. g4 {[%clk 0:00:28.1]}
29... hxg4 {[%clk 0:00:52.9]} 30. hxg4 {[%clk 0:00:29]} 30... Rh7 {[%clk
0:00:53.6]} 31. Rh1 {[%clk 0:00:17.2]} 31... Rxh1 {[%clk 0:00:53.2]} 32. Qxh1
{[%clk 0:00:17.5]} 32... Nxg4 {[%clk 0:00:44.1]} 33. Rh3 {[%clk 0:00:14]} 33...
Bg7 {[%clk 0:00:38.6]} 34. c5 {[%clk 0:00:06]} 34... e3 {[%clk 0:00:33.1]} 35.
cxd6 {[%clk 0:00:04.3]} 35... Qc2 {[%clk 0:00:32.4]} 36. Qd1 {[%clk 0:00:03]}
36... Qxd1 {[%clk 0:00:20.1]} 37. Bxd1 {[%clk 0:00:03.9]} 37... exf2 {[%clk
0:00:11]} 38. d7 {[%clk 0:00:02.9]} 38... Bxd7 {[%clk 0:00:11.6]} 39. Nxd7
{[%clk 0:00:02.5]} 39... Re1 {[%clk 0:00:12.1]} 40. Be2 {[%clk 0:00:02.7]} 40...
Rxe2 {[%clk 0:00:10.4]} 41. Rf3 {[%clk 0:00:02.8]} 41... Ne3+ {[%clk 0:00:08.1]}
42. Rxe3 {[%clk 0:00:02.3]} 42... Rxe3 {[%clk 0:00:09]} 43. Kxf2 {[%clk
0:00:03.1]} 43... Rb3 {[%clk 0:00:09.3]} 44. Bc5 {[%clk 0:00:03.2]} 44... Rb5
{[%clk 0:00:08.2]} 45. Ke3 {[%clk 0:00:03.2]} 45... Kf7 {[%clk 0:00:07.3]} 0-1

[Event "Early-Titled-Tuesday-Blitz-July-09-2024"]
[Site "Chess.com"]
[Date "2024.07.09"]
[Round "11"]
[White "bazar-wokzal"]
[Black "NikitaShnadrygin"]
[Result "1-0"]
[WhiteElo "2629"]
[BlackElo "2720"]
[TimeControl "180+1"]
[EndTime "10:07:43 PDT"]
[Termination "bazar-wokzal won on time"]

1. e4 {[%clk 0:03:00.9]} 1... c5 {[%clk 0:02:59.6]} 2. c3 {[%clk 0:03:00.5]}
2... Nf6 {[%clk 0:03:00]} 3. e5 {[%clk 0:03:00.4]} 3... Nd5 {[%clk 0:03:00.2]}
4. d4 {[%clk 0:03:01.2]} 4... cxd4 {[%clk 0:03:00.2]} 5. cxd4 {[%clk 0:03:02.1]}
5... d6 {[%clk 0:03:00.1]} 6. Bc4 {[%clk 0:03:01.9]} 6... Nb6 {[%clk 0:03:00.1]}
7. Bb3 {[%clk 0:03:02.2]} 7... Nc6 {[%clk 0:02:59.6]} 8. e6 {[%clk 0:03:02]}
8... fxe6 {[%clk 0:02:48.8]} 9. Nf3 {[%clk 0:03:02.1]} 9... g6 {[%clk 0:02:19]}
10. h4 {[%clk 0:03:01.6]} 10... Bg7 {[%clk 0:01:58.4]} 11. h5 {[%clk 0:03:01.8]}
11... Qc7 {[%clk 0:01:47.1]} 12. Nc3 {[%clk 0:02:57.1]} 12... a6 {[%clk
0:01:28.8]} 13. hxg6 {[%clk 0:02:50.2]} 13... Bd7 {[%clk 0:01:15.8]} 14. gxh7
{[%clk 0:02:36.6]} 14... O-O-O {[%clk 0:01:11.7]} 15. Be3 {[%clk 0:02:36.8]}
15... Kb8 {[%clk 0:01:01.6]} 16. Qd3 {[%clk 0:02:30.9]} 16... Nb4 {[%clk
0:00:56.8]} 17. Qg6 {[%clk 0:02:29.5]} 17... Bf6 {[%clk 0:00:54.5]} 18. Rc1
{[%clk 0:02:22.6]} 18... Be8 {[%clk 0:00:33.1]} 19. Qb1 {[%clk 0:02:16.3]} 19...
Qd7 {[%clk 0:00:31.6]} 20. a3 {[%clk 0:02:04.9]} 20... N4d5 {[%clk 0:00:30.8]}
21. Qe4 {[%clk 0:02:00.6]} 21... Bf7 {[%clk 0:00:26.6]} 22. Ng5 {[%clk
0:01:53.3]} 22... Bxg5 {[%clk 0:00:16.9]} 23. Bxg5 {[%clk 0:01:53.4]} 23... Rc8
{[%clk 0:00:17.4]} 24. Nxd5 {[%clk 0:01:43.5]} 24... Rxc1+ {[%clk 0:00:16.6]}
25. Bxc1 {[%clk 0:01:43.1]} 25... exd5 {[%clk 0:00:17.1]} 26. Qd3 {[%clk
0:01:31.6]} 26... Qe6+ {[%clk 0:00:16.2]} 27. Be3 {[%clk 0:01:26.7]} 27... Bg6
{[%clk 0:00:15.6]} 28. Qd2 {[%clk 0:01:18.6]} 28... Rxh7 {[%clk 0:00:14.8]} 29.
Rxh7 {[%clk 0:01:18.5]} 29... Bxh7 {[%clk 0:00:15.7]} 30. Qa5 {[%clk 0:01:18.6]}
30... Ka7 {[%clk 0:00:10.9]} 31. Qc3 {[%clk 0:01:10.2]} 31... Be4 {[%clk
0:00:10.1]} 32. f3 {[%clk 0:01:09.2]} 32... Bf5 {[%clk 0:00:09.9]} 33. Kf2
{[%clk 0:01:06.3]} 33... Qd7 {[%clk 0:00:09.4]} 34. Bf4 {[%clk 0:01:04.4]} 34...
Bg6 {[%clk 0:00:09]} 35. Bc2 {[%clk 0:01:02.1]} 35... Bxc2 {[%clk 0:00:08.7]}
36. Qxc2 {[%clk 0:01:02.6]} 36... Nc4 {[%clk 0:00:04.7]} 37. g4 {[%clk
0:01:02.4]} 37... e5 {[%clk 0:00:05]} 38. Be3 {[%clk 0:00:55.2]} 38... b6 {[%clk
0:00:04.9]} 39. b3 {[%clk 0:00:52.2]} 39... Nxe3 {[%clk 0:00:04.8]} 40. Kxe3
{[%clk 0:00:52.1]} 40... Qe7 {[%clk 0:00:05.5]} 41. Qf5 {[%clk 0:00:48.2]} 41...
Qc7 {[%clk 0:00:04.3]} 42. Kf2 {[%clk 0:00:42]} 42... exd4 {[%clk 0:00:02.9]}
43. g5 {[%clk 0:00:39.9]} 43... b5 {[%clk 0:00:02.2]} 44. g6 {[%clk 0:00:40.1]}
44... Kb6 {[%clk 0:00:02.8]} 45. Kg3 {[%clk 0:00:38.3]} 45... d3 {[%clk
0:00:01.5]} 46. Qxd3 {[%clk 0:00:35.9]} 46... Qg7 {[%clk 0:00:02.2]} 47. Kg4
{[%clk 0:00:33.8]} 47... d4 {[%clk 0:00:03.1]} 48. f4 {[%clk 0:00:32.2]} 48...
Kc5 {[%clk 0:00:03.5]} 49. Kg5 {[%clk 0:00:30.5]} 49... Kd5 {[%clk 0:00:03.6]}
50. Qf5+ {[%clk 0:00:29.3]} 50... Kc6 {[%clk 0:00:02.6]} 51. Qf7 {[%clk
0:00:27.9]} 51... Qh8 {[%clk 0:00:02.6]} 52. g7 {[%clk 0:00:27.7]} 1-0

[Event "Early-Titled-Tuesday-Blitz-July-09-2024"]
[Site "Chess.com"]
[Date "2024.07.09"]
[Round "11"]
[White "djano"]
[Black "JunjiCol"]
[Result "0-1"]
[WhiteElo "2595"]
[BlackElo "2401"]
[TimeControl "180+1"]
[EndTime "10:07:43 PDT"]
[Termination "JunjiCol won on time"]

1. e4 {[%clk 0:03:00.9]} 1... e5 {[%clk 0:02:55.1]} 2. d4 {[%clk 0:03:00.3]}
2... exd4 {[%clk 0:02:54.7]} 3. c3 {[%clk 0:03:00.3]} 3... Qe7 {[%clk
0:02:49.8]} 4. cxd4 {[%clk 0:02:59]} 4... Qxe4+ {[%clk 0:02:49.2]} 5. Be2 {[%clk
0:02:59.2]} 5... Qxg2 {[%clk 0:02:48.5]} 6. Bf3 {[%clk 0:02:58.9]} 6... Qg6
{[%clk 0:02:48.4]} 7. Ne2 {[%clk 0:02:59.4]} 7... Nc6 {[%clk 0:02:42.5]} 8. Nbc3
{[%clk 0:02:58.7]} 8... Bb4 {[%clk 0:02:37.7]} 9. Rg1 {[%clk 0:02:53.7]} 9...
Bxc3+ {[%clk 0:02:35.7]} 10. bxc3 {[%clk 0:02:53.1]} 10... Qf6 {[%clk
0:02:36.1]} 11. Nf4 {[%clk 0:02:43.5]} 11... Nge7 {[%clk 0:02:32.6]} 12. Nh5
{[%clk 0:02:39.8]} 12... Qe6+ {[%clk 0:02:32.4]} 13. Be3 {[%clk 0:02:39.1]}
13... Qc4 {[%clk 0:02:29.2]} 14. Nxg7+ {[%clk 0:02:35.3]} 14... Kd8 {[%clk
0:02:29.3]} 15. Qd2 {[%clk 0:02:20.9]} 15... d5 {[%clk 0:02:19.6]} 16. Bg5
{[%clk 0:01:56.6]} 16... Rg8 {[%clk 0:02:16.1]} 17. Bf6 {[%clk 0:01:51.2]} 17...
Bh3 {[%clk 0:01:55.1]} 18. Ne6+ {[%clk 0:01:47.4]} 18... Kd7 {[%clk 0:01:55]}
19. Ng5 {[%clk 0:01:05.9]} 19... Bf5 {[%clk 0:01:43.6]} 20. Rg3 {[%clk 0:01:05]}
20... Rae8 {[%clk 0:01:41]} 21. O-O-O {[%clk 0:00:59.4]} 21... Nb4 {[%clk
0:01:37.5]} 22. Be2 {[%clk 0:00:49]} 22... Nxa2+ {[%clk 0:01:35.9]} 23. Kb2
{[%clk 0:00:47.2]} 23... Qa4 {[%clk 0:01:31.8]} 24. Ra1 {[%clk 0:00:47]} 24...
Qc6 {[%clk 0:01:02]} 25. Bxe7 {[%clk 0:00:25.7]} 25... Rxe7 {[%clk 0:01:02.9]}
26. Kxa2 {[%clk 0:00:20.9]} 26... Rge8 {[%clk 0:00:54.4]} 27. Re3 {[%clk
0:00:16.9]} 27... Rxe3 {[%clk 0:00:53.2]} 28. fxe3 {[%clk 0:00:17.8]} 28... Rxe3
{[%clk 0:00:51.6]} 29. Nf3 {[%clk 0:00:09.4]} 29... Qxc3 {[%clk 0:00:27.2]} 30.
Ne5+ {[%clk 0:00:09.4]} 30... Ke7 {[%clk 0:00:24]} 31. Qxc3 {[%clk 0:00:10.3]}
31... Rxc3 {[%clk 0:00:24.4]} 32. Kb2 {[%clk 0:00:10.9]} 32... Re3 {[%clk
0:00:24.3]} 33. Bb5 {[%clk 0:00:09]} 33... f6 {[%clk 0:00:24.1]} 34. Rxa7 {[%clk
0:00:07.4]} 34... fxe5 {[%clk 0:00:24.3]} 35. Rxb7 {[%clk 0:00:08.1]} 35... exd4
{[%clk 0:00:24.7]} 36. Rxc7+ {[%clk 0:00:08.3]} 36... Kd6 {[%clk 0:00:25.3]} 37.
Rf7 {[%clk 0:00:07.4]} 37... Bg6 {[%clk 0:00:23.7]} 38. Rf4 {[%clk 0:00:06.5]}
38... Kc5 {[%clk 0:00:23.2]} 39. Bf1 {[%clk 0:00:07.1]} 39... d3 {[%clk
0:00:23.4]} 40. Kc3 {[%clk 0:00:06.6]} 40... Re4 {[%clk 0:00:20.5]} 41. Rf8
{[%clk 0:00:06.2]} 41... Rc4+ {[%clk 0:00:20.6]} 42. Kd2 {[%clk 0:00:06.7]}
42... Rc2+ {[%clk 0:00:20.8]} 43. Kd1 {[%clk 0:00:07.3]} 43... Kd4 {[%clk
0:00:19.2]} 44. Rf4+ {[%clk 0:00:06.9]} 44... Ke3 {[%clk 0:00:19.4]} 45. Rh4
{[%clk 0:00:06.4]} 45... Rd2+ {[%clk 0:00:18.3]} 46. Ke1 {[%clk 0:00:06.4]}
46... Ra2 {[%clk 0:00:18.2]} 47. Rh3+ {[%clk 0:00:05.8]} 47... Kd4 {[%clk
0:00:18.8]} 48. Rh4+ {[%clk 0:00:01.9]} 48... Kc3 {[%clk 0:00:18.2]} 49. h3
{[%clk 0:00:01.3]} 49... d2+ {[%clk 0:00:17.6]} 50. Ke2 {[%clk 0:00:02]} 50...
Bd3+ {[%clk 0:00:16.6]} 51. Kf2 {[%clk 0:00:02]} 51... d1=Q+ {[%clk 0:00:16.5]}
0-1

[Event "Early-Titled-Tuesday-Blitz-July-09-2024"]
[Site "Chess.com"]
[Date "2024.07.09"]
[Round "11"]
[White "SpeedofLight0"]
[Black "Nitzan_Steinberg"]
[Result "0-1"]
[WhiteElo "3123"]
[BlackElo "2887"]
[TimeControl "180+1"]
[EndTime "10:07:46 PDT"]
[Termination "Nitzan_Steinberg won by checkmate"]

1. d4 {[%clk 0:03:00.9]} 1... Nf6 {[%clk 0:02:59.9]} 2. Nc3 {[%clk 0:03:01.5]}
2... d5 {[%clk 0:03:00.1]} 3. Bf4 {[%clk 0:03:02.2]} 3... e6 {[%clk 0:03:00.7]}
4. e3 {[%clk 0:03:01]} 4... a6 {[%clk 0:03:00.6]} 5. g4 {[%clk 0:03:01.1]} 5...
Bb4 {[%clk 0:02:53.7]} 6. g5 {[%clk 0:02:59.8]} 6... Ne4 {[%clk 0:02:53.8]} 7.
Ne2 {[%clk 0:02:58.6]} 7... c5 {[%clk 0:02:44.1]} 8. h4 {[%clk 0:02:41.3]} 8...
Nc6 {[%clk 0:02:38]} 9. Bg2 {[%clk 0:02:34.7]} 9... cxd4 {[%clk 0:02:33.6]} 10.
exd4 {[%clk 0:02:33.1]} 10... Nxc3 {[%clk 0:02:17.5]} 11. bxc3 {[%clk
0:02:29.7]} 11... Be7 {[%clk 0:02:11]} 12. Qd3 {[%clk 0:02:17.3]} 12... Bd7
{[%clk 0:02:07.1]} 13. Qg3 {[%clk 0:02:17]} 13... Qa5 {[%clk 0:01:50.3]} 14. h5
{[%clk 0:02:09.1]} 14... Qa4 {[%clk 0:01:43.7]} 15. Rc1 {[%clk 0:01:59.1]} 15...
Ba3 {[%clk 0:01:26.4]} 16. Rb1 {[%clk 0:01:55.8]} 16... b5 {[%clk 0:01:20.3]}
17. Rb3 {[%clk 0:01:42.6]} 17... Be7 {[%clk 0:01:13.4]} 18. O-O {[%clk
0:01:25.9]} 18... Na5 {[%clk 0:01:09]} 19. h6 {[%clk 0:01:09.1]} 19... Rg8
{[%clk 0:01:01.1]} 20. Qd3 {[%clk 0:01:05.4]} 20... gxh6 {[%clk 0:00:51.8]} 21.
Qxh7 {[%clk 0:01:04.1]} 21... O-O-O {[%clk 0:00:47.8]} 22. g6 {[%clk 0:00:47.4]}
22... Rxg6 {[%clk 0:00:28]} 23. Qxf7 {[%clk 0:00:47.6]} 23... Rdg8 {[%clk
0:00:23.8]} 24. Bg3 {[%clk 0:00:47]} 24... Bd6 {[%clk 0:00:12.7]} 25. Nf4 {[%clk
0:00:37]} 25... R8g7 {[%clk 0:00:07.6]} 26. Qxg6 {[%clk 0:00:32.2]} 26... Rxg6
{[%clk 0:00:07.9]} 27. Nxg6 {[%clk 0:00:33.1]} 27... Bxg3 {[%clk 0:00:05.8]} 28.
fxg3 {[%clk 0:00:34]} 28... Nxb3 {[%clk 0:00:05.8]} 29. axb3 {[%clk 0:00:34.9]}
29... Qa2 {[%clk 0:00:05.9]} 30. Ne5 {[%clk 0:00:32.5]} 30... Be8 {[%clk
0:00:05.2]} 31. Rf8 {[%clk 0:00:30.6]} 31... Kd8 {[%clk 0:00:04.9]} 32. Bf3
{[%clk 0:00:30.4]} 32... Qa1+ {[%clk 0:00:04.7]} 33. Kg2 {[%clk 0:00:28.2]}
33... Ke7 {[%clk 0:00:05.1]} 34. Rh8 {[%clk 0:00:25.7]} 34... Qxc3 {[%clk
0:00:05.5]} 35. Rh7+ {[%clk 0:00:25.1]} 35... Kd6 {[%clk 0:00:05.6]} 36. Ra7
{[%clk 0:00:16.7]} 36... Qd2+ {[%clk 0:00:05.1]} 37. Kh3 {[%clk 0:00:16.6]}
37... Qxd4 {[%clk 0:00:05.5]} 38. Nf7+ {[%clk 0:00:15.2]} 38... Bxf7 {[%clk
0:00:05.3]} 39. Rxf7 {[%clk 0:00:15.4]} 39... a5 {[%clk 0:00:05.6]} 40. Rb7
{[%clk 0:00:07.9]} 40... a4 {[%clk 0:00:05.6]} 41. Rxb5 {[%clk 0:00:08.2]} 41...
a3 {[%clk 0:00:06.1]} 42. Ra5 {[%clk 0:00:08.9]} 42... Qb2 {[%clk 0:00:05.5]}
43. c4 {[%clk 0:00:09.4]} 43... a2 {[%clk 0:00:05.1]} 44. c5+ {[%clk 0:00:10]}
44... Ke5 {[%clk 0:00:05.7]} 45. c6 {[%clk 0:00:10.1]} 45... a1=Q {[%clk
0:00:06.2]} 46. Rxa1 {[%clk 0:00:10.4]} 46... Qxa1 {[%clk 0:00:07.1]} 47. c7
{[%clk 0:00:11]} 47... Qc3 {[%clk 0:00:07.4]} 48. c8=Q {[%clk 0:00:11.2]} 48...
Qxc8 {[%clk 0:00:07.5]} 49. Bg4 {[%clk 0:00:12.1]} 49... Qc3 {[%clk 0:00:07.7]}
50. Kh4 {[%clk 0:00:12.6]} 50... Qxb3 {[%clk 0:00:07.9]} 51. Bh3 {[%clk
0:00:12.8]} 51... Qe3 {[%clk 0:00:08]} 52. Kg4 {[%clk 0:00:12.6]} 52... d4
{[%clk 0:00:08.9]} 53. Bg2 {[%clk 0:00:12.6]} 53... d3 {[%clk 0:00:09.8]} 54.
Bf3 {[%clk 0:00:13]} 54... d2 {[%clk 0:00:10.4]} 55. Kh4 {[%clk 0:00:12.6]}
55... Qxf3 {[%clk 0:00:10.4]} 56. g4 {[%clk 0:00:13.5]} 56... Kf4 {[%clk
0:00:10.6]} 57. Kh5 {[%clk 0:00:13.5]} 57... Qxg4+ {[%clk 0:00:11]} 58. Kxh6
{[%clk 0:00:14.1]} 58... Qg5+ {[%clk 0:00:11.5]} 59. Kh7 {[%clk 0:00:14.7]}
59... d1=Q {[%clk 0:00:11.8]} 60. Kh8 {[%clk 0:00:15.6]} 60... Qh1# {[%clk
0:00:11.9]} 0-1

[Event "Early-Titled-Tuesday-Blitz-July-09-2024"]
[Site "Chess.com"]
[Date "2024.07.09"]
[Round "11"]
[White "vikber19611"]
[Black "DarkPassenger007"]
[Result "0-1"]
[WhiteElo "1737"]
[BlackElo "2216"]
[TimeControl "180+1"]
[EndTime "10:07:48 PDT"]
[Termination "DarkPassenger007 won on time"]

1. e4 {[%clk 0:03:00.9]} 1... c6 {[%clk 0:02:59.9]} 2. d4 {[%clk 0:02:59.4]}
2... d5 {[%clk 0:03:00.4]} 3. Nc3 {[%clk 0:02:59.2]} 3... dxe4 {[%clk
0:03:00.3]} 4. Nxe4 {[%clk 0:02:58.9]} 4... Nf6 {[%clk 0:03:00.1]} 5. Nxf6+
{[%clk 0:02:57.2]} 5... exf6 {[%clk 0:03:00.7]} 6. Nf3 {[%clk 0:02:56.7]} 6...
Bd6 {[%clk 0:03:00.5]} 7. Bd3 {[%clk 0:02:55]} 7... O-O {[%clk 0:02:59.6]} 8.
O-O {[%clk 0:02:50.7]} 8... Bg4 {[%clk 0:02:57.6]} 9. h3 {[%clk 0:02:48.9]} 9...
Bh5 {[%clk 0:02:57.3]} 10. g4 {[%clk 0:02:45]} 10... Bg6 {[%clk 0:02:56.2]} 11.
Bxg6 {[%clk 0:02:43.8]} 11... hxg6 {[%clk 0:02:57.1]} 12. Re1 {[%clk 0:02:40.2]}
12... Bc7 {[%clk 0:02:48.6]} 13. Kg2 {[%clk 0:02:35.3]} 13... Qd6 {[%clk
0:02:45.7]} 14. Qe2 {[%clk 0:02:26.1]} 14... Nd7 {[%clk 0:02:40.5]} 15. Qe7
{[%clk 0:02:16]} 15... Nb6 {[%clk 0:02:16.1]} 16. Qxd6 {[%clk 0:02:11.3]} 16...
Bxd6 {[%clk 0:02:16.7]} 17. b3 {[%clk 0:02:09.9]} 17... Bb4 {[%clk 0:02:04.9]}
18. Bd2 {[%clk 0:02:06.6]} 18... Nd5 {[%clk 0:02:00.4]} 19. a3 {[%clk
0:01:58.9]} 19... Bc3 {[%clk 0:01:30.1]} 20. Bxc3 {[%clk 0:01:50.7]} 20... Nxc3
{[%clk 0:01:31]} 21. Re7 {[%clk 0:01:48.4]} 21... Rab8 {[%clk 0:01:23.5]} 22.
Rae1 {[%clk 0:01:46.4]} 22... Nd5 {[%clk 0:01:22]} 23. Rd7 {[%clk 0:01:41.4]}
23... Rfd8 {[%clk 0:01:19]} 24. Rxd8+ {[%clk 0:01:38.9]} 24... Rxd8 {[%clk
0:01:19.9]} 25. c4 {[%clk 0:01:35.1]} 25... Nf4+ {[%clk 0:01:17.8]} 26. Kg3
{[%clk 0:01:32.8]} 26... Ne6 {[%clk 0:01:14.5]} 27. Rd1 {[%clk 0:01:31.5]} 27...
g5 {[%clk 0:01:07.6]} 28. Kg2 {[%clk 0:00:48.9]} 28... Nf4+ {[%clk 0:01:03.5]}
29. Kg3 {[%clk 0:00:42.7]} 29... Ne2+ {[%clk 0:00:52.6]} 30. Kg2 {[%clk
0:00:41]} 30... Nf4+ {[%clk 0:00:53]} 31. Kg3 {[%clk 0:00:40.9]} 31... b5 {[%clk
0:00:53]} 32. h4 {[%clk 0:00:29.1]} 32... Ne2+ {[%clk 0:00:47.4]} 33. Kg2 {[%clk
0:00:27.9]} 33... Nf4+ {[%clk 0:00:45.1]} 34. Kg3 {[%clk 0:00:26.9]} 34... Ne2+
{[%clk 0:00:44.2]} 35. Kg2 {[%clk 0:00:26.9]} 35... gxh4 {[%clk 0:00:44.5]} 36.
Kh3 {[%clk 0:00:19.9]} 36... g5 {[%clk 0:00:41]} 37. d5 {[%clk 0:00:17.3]} 37...
Nf4+ {[%clk 0:00:40.6]} 38. Kh2 {[%clk 0:00:16.1]} 38... cxd5 {[%clk 0:00:40.5]}
39. cxb5 {[%clk 0:00:15.9]} 39... Rc8 {[%clk 0:00:31.5]} 40. Nd4 {[%clk
0:00:15]} 40... Rc3 {[%clk 0:00:25.7]} 41. Rb1 {[%clk 0:00:13.4]} 41... Rd3
{[%clk 0:00:22.6]} 42. Nf5 {[%clk 0:00:10.5]} 42... Rd2 {[%clk 0:00:15.6]} 43.
Kg1 {[%clk 0:00:09.7]} 43... Nh3+ {[%clk 0:00:15.5]} 44. Kg2 {[%clk 0:00:06.8]}
44... Nxf2 {[%clk 0:00:14.8]} 45. a4 {[%clk 0:00:05]} 45... Nxg4+ {[%clk
0:00:12.6]} 46. Kh3 {[%clk 0:00:03.4]} 46... Ne5 {[%clk 0:00:09.2]} 47. a5
{[%clk 0:00:02.3]} 47... Rd3+ {[%clk 0:00:08.2]} 48. Kg2 {[%clk 0:00:01.2]}
48... h3+ {[%clk 0:00:08.5]} 0-1